bitfinex-derivatives/quotes_SOLF0:USTF0_20250311
["timestamp","ask_amount","ask_price","bid_price","bid_amount"]
[1741695491533,0.0515247,124.41,124.4,8.0392]
[1741695495827,0.0515247,124.41,124.39,8.10090623]
[1741695497530,0.0515247,124.41,124.39,0.06140623]
[1741695498132,0.0515247,124.41,124.39,8.10080623]
[1741695498436,0.0515247,124.41,124.39,0.06140623]
[1741695498630,0.0515247,124.41,124.39,8.10070623]
[1741695500331,0.0515247,124.41,124.4,8.0392]
[1741695501836,0.0515247,124.41,124.39,0.06140623]
[1741695502035,0.0515247,124.41,124.39,8.10090623]
[1741695502738,0.0515247,124.41,124.39,0.06140623]
[1741695502938,0.0515247,124.41,124.39,35.64140623]
[1741695503838,8.0905247,124.41,124.39,0.06140623]
[1741695504036,0.0515247,124.41,124.39,0.06140623]
[1741695504238,2.1259247,124.41,124.39,0.06140623]
[1741695504437,8.0408,124.38,124.35,35.46]
[1741695504637,8.0408,124.38,124.33,275.32718242]
[1741695504833,4.1625,124.41,124.34,35.44]
[1741695505140,12.2014,124.41,124.34,35.44]
[1741695505346,2.0744,124.41,124.38,8.0403]
[1741695505641,0.05082131,124.39,124.38,43.4403]
[1741695507937,0.05082131,124.39,124.38,35.4]
[1741695509044,0.05082131,124.39,124.37,43.2609]
[1741695509239,0.05082131,124.39,124.36,0.05164554]
[1741695509440,0.05082131,124.39,124.36,35.25164554]
[1741695509642,8.0406,124.38,124.36,0.05164554]
[1741695510835,0.05082131,124.39,124.36,0.05164554]
[1741695511041,8.0411,124.37,124.36,0.05164554]
[1741695511745,2.138,124.38,124.32,63.17629]
[1741695511746,8.0428,124.35,124.32,63.17629]
[1741695512448,8.0428,124.35,124.32,63.13629]
[1741695513048,8.1034846,124.35,124.32,63.18743365]
[1741695513247,8.0431,124.34,124.32,63.18743365]
[1741695513449,0.0606846,124.35,124.32,63.18743365]
[1741695513949,8.1035846,124.35,124.32,63.18743365]
[1741695514346,10.10786702,124.35,124.32,28.06743365]
[1741695514641,10.10786702,124.35,124.28,171.82226612]
[1741695514642,10.04718242,124.33,124.28,32.76656206]
[1741695514847,8.0469,124.28,124.24,32.76656206]
[1741695515438,10.04718242,124.3,124.24,32.76656206]
[1741695515745,10.04718242,124.3,124.25,0.05761503]
[1741695515746,8.10561525,124.27,124.25,0.05761503]
[1741695515940,0.05761525,124.27,124.25,0.05761503]
[1741695516145,18.09538242,124.26,124.25,0.05761503]
[1741695516341,10.04718242,124.26,124.25,0.05761503]
[1741695516547,0.05761525,124.27,124.25,0.05761503]
[1741695522149,10.04718242,124.26,124.25,0.05761503]
[1741695522353,0.05761525,124.27,124.25,0.05761503]
[1741695528757,0.05761525,124.27,124.25,8.10611503]
[1741695529159,0.05761525,124.27,124.25,0.05761503]
[1741695530559,0.05761525,124.27,124.25,8.10641503]
[1741695530762,0.05761525,124.27,124.25,0.05761503]
[1741695532062,8.10521525,124.27,124.25,0.05761503]
[1741695533064,18.09538242,124.26,124.25,0.05761503]
[1741695533252,10.04718242,124.26,124.25,0.05761503]
[1741695535362,18.09538242,124.26,124.25,0.05761503]
[1741695535562,10.04718242,124.26,124.25,0.05761503]
[1741695535763,0.05761525,124.27,124.25,0.05761503]
[1741695536563,8.0482,124.26,124.25,0.05761503]
[1741695537069,10.04718242,124.26,124.2,1.9812]
[1741695537267,8.0499,124.24,124.19,42.6925]
[1741695537564,10.04718242,124.26,124.21,8.0515]
[1741695537961,18.09578242,124.26,124.21,8.0515]
[1741695538357,0.0564361,124.25,124.22,8.0508]
[1741695539067,0.0564361,124.25,124.21,8.0512]
[1741695539267,8.0498,124.24,124.2,34.66]
[1741695539664,0.0564361,124.25,124.2,42.7118]
[1741695539861,0.0564361,124.25,124.2,34.66]
[1741695540166,8.1057361,124.25,124.2,34.66]
[1741695540368,0.0564361,124.25,124.2,34.66]
[1741695540567,10.04718242,124.24,124.18,301.891]
[1741695541066,0.05468388,124.22,124.18,301.891]
[1741695541870,10.04718242,124.28,124.18,301.891]
[1741695542258,6.44880443,124.26,124.2,6.44880443]
[1741695542771,14.49730443,124.26,124.2,6.44880443]
[1741695542970,6.50134406,124.24,124.22,0.05824873]
[1741695543172,6.44880443,124.24,124.22,0.05824873]
[1741695543471,6.50464923,124.24,124.22,0.05824873]
[1741695543874,14.55444923,124.24,124.22,0.05824873]
[1741695544062,6.50464923,124.24,124.22,0.05824873]
[1741695544467,14.55444923,124.24,124.22,0.05824873]
[1741695545572,8.0502,124.23,124.22,0.05824873]
[1741695548274,6.50464923,124.24,124.22,0.05824873]
[1741695548472,14.55444923,124.24,124.22,0.05824873]
[1741695548674,6.50464923,124.24,124.22,0.05824873]
[1741695548874,8.0502,124.23,124.22,0.05824873]
[1741695550276,6.50464923,124.24,124.18,36.751]
[1741695550572,6.44880443,124.19,124.18,1.971]
[1741695550772,8.0538,124.18,124.16,2.1613]
[1741695550979,6.44880443,124.19,124.16,2.1613]
[1741695551479,6.50355038,124.19,124.16,2.1613]
[1741695552084,8.0536,124.18,124.14,265.6]
[1741695552280,6.44880443,124.17,124.13,40.9916]
[1741695552576,14.50430443,124.15,124.13,4.1672]
[1741695552772,14.50430443,124.15,124.12,120.75884608]
[1741695554079,14.50430443,124.15,124.1,49.0586]
[1741695554282,14.50560443,124.13,124.1,4.0559]
[1741695554776,14.56067594,124.13,124.1,4.0559]
[1741695555082,6.50397594,124.13,124.1,4.0559]
[1741695555280,0.05517151,124.13,124.1,4.0559]
[1741695556083,0.05517151,124.13,124.1,12.1142]
[1741695556581,0.05517151,124.13,124.1,4.0559]
[1741695559883,34.76,124.17,124.1,4.0559]
[1741695560284,8.0548,124.16,124.12,8.057]
[1741695560689,8.0548,124.16,124.12,42.917]
[1741695561184,0.05776673,124.15,124.14,8.056]
[1741695561382,8.0537,124.18,124.14,8.056]
[1741695561778,8.0526,124.2,124.13,2.16185423]
[1741695561978,44.9941021,124.23,124.14,10.0941021]
[1741695562186,54.43466948,124.25,124.16,10.0941021]
[1741695562386,10.0941021,124.25,124.17,37.0498]
[1741695562583,0.05764713,124.22,124.19,0.05315826]
[1741695562788,10.0941021,124.26,124.19,0.05315826]
[1741695563091,89.33466948,124.28,124.19,0.05315826]
[1741695563389,10.0941021,124.26,124.19,2.142]
[1741695564086,0.05700501,124.24,124.22,8.0507]
[1741695564490,0.05700501,124.24,124.21,34.89143409]
[1741695565691,0.05700501,124.24,124.21,42.94233409]
[1741695566785,10.0941021,124.28,124.21,34.89143409]
[1741695566993,10.0941021,124.3,124.21,34.89143409]
[1741695567186,10.0941021,124.3,124.24,8.0494]
[1741695567692,8.0475,124.28,124.23,8.0498]
[1741695567891,10.0941021,124.31,124.22,10.0941021]
[1741695568091,0.05303568,124.27,124.24,0.05935256]
[1741695568291,10.0941021,124.31,124.25,43.0086]
[1741695568695,10.0941021,124.31,124.25,34.96]
[1741695568983,44.34056738,124.36,124.26,10.0941021]
[1741695569287,44.34056738,124.36,124.27,2.1549]
[1741695569288,8.0427,124.35,124.27,2.1549]
[1741695569488,0.05403239,124.32,124.3,0.05110718]
[1741695570983,8.045,124.31,124.3,0.05110718]
[1741695571189,10.14813449,124.32,124.23,37.1362]
[1741695571383,10.0941021,124.3,124.23,39.2911]
[1741695571893,10.0941021,124.32,124.25,8.0485]
[1741695572082,10.0941021,124.32,124.24,10.0941021]
[1741695572492,0.0592375,124.29,124.27,0.05552986]
[1741695574689,0.0592375,124.29,124.28,8.0469]
[1741695574984,10.0941021,124.34,124.27,35.17552986]
[1741695575194,10.0941021,124.34,124.27,35.12]
[1741695575390,10.0941021,124.34,124.27,43.1673]
[1741695575898,10.0941021,124.34,124.28,8.0467]
[1741695576196,8.0454,124.31,124.29,0.06109413]
[1741695576397,10.0941021,124.3,124.29,0.06109413]
[1741695576589,18.1397021,124.3,124.29,0.06109413]
[1741695577695,10.0941021,124.3,124.23,4.1311]
[1741695577893,10.0941021,124.27,124.23,4.1311]
[1741695578099,10.0941021,124.25,124.19,34.98]
[1741695578396,10.0941021,124.23,124.17,2.1779]
[1741695578899,0.06099417,124.21,124.19,0.06140726]
[1741695579602,8.0521,124.2,124.19,0.06140726]
[1741695580203,0.06099417,124.21,124.19,0.06140726]
[1741695580901,10.0941021,124.25,124.19,0.06140726]
[1741695581103,10.0941021,124.25,124.2,34.9]
[1741695581297,8.0503,124.23,124.2,34.9]
[1741695581496,10.0941021,124.25,124.2,34.9]
[1741695581893,8.0502,124.23,124.2,34.9]
[1741695582098,0.05526952,124.24,124.2,34.9]
[1741695582502,8.10516952,124.24,124.2,34.9]
[1741695582696,0.05526952,124.24,124.2,34.9]
[1741695582900,0.05526952,124.24,124.19,0.06140726]
[1741695583202,10.0941021,124.21,124.19,0.06140726]
[1741695583601,8.0521,124.2,124.19,0.06140726]
[1741695584199,10.15585788,124.21,124.19,0.06140726]
[1741695585103,18.20795788,124.21,124.19,0.06140726]
[1741695585606,10.15585788,124.21,124.19,0.06140726]
[1741695586003,0.06175578,124.21,124.19,0.06140726]
[1741695586899,0.06175578,124.21,124.2,8.0521]
[1741695587094,10.0941021,124.25,124.19,4.20230726]
[1741695587696,18.1431021,124.25,124.21,8.051]
[1741695587902,10.0941021,124.27,124.19,4.20230726]
[1741695588103,18.1420021,124.27,124.19,12.1931]
[1741695588301,0.06059984,124.24,124.22,0.05872711]
[1741695588697,8.0502,124.23,124.22,0.05872711]
[1741695591005,8.11019984,124.24,124.22,0.05872711]
[1741695591198,0.06059984,124.24,124.22,0.05872711]
[1741695591602,8.0502,124.23,124.22,0.05872711]
[1741695592508,0.06059984,124.24,124.22,0.05872711]
[1741695593010,8.11049984,124.24,124.22,0.05872711]
[1741695593209,0.06059984,124.24,124.22,0.05872711]
[1741695593809,8.0502,124.23,124.22,0.05872711]
[1741695597713,16.12316535,124.23,124.12,34.38]
[1741695597909,34.38,124.22,124.13,4.0974]
[1741695598413,8.0537,124.18,124.14,8.056]
[1741695598613,34.38,124.22,124.13,4.0974]
[1741695598811,0.05965688,124.17,124.15,0.05397008]
[1741695599011,8.0539,124.18,124.15,34.37397008]
[1741695599212,0.05573852,124.17,124.15,34.37397008]
[1741695599814,8.10983852,124.17,124.15,34.37397008]
[1741695600517,0.05573852,124.17,124.15,34.37397008]
[1741695600712,8.0547,124.16,124.15,34.37397008]
[1741695601015,0.05573852,124.17,124.15,34.37397008]
[1741695602315,8.0532,124.19,124.15,42.42917008]
[1741695603013,16.12316535,124.26,124.15,50.49713543]
[1741695603317,12.84414184,124.29,124.17,16.12316535]
[1741695603318,50.44316535,124.28,124.17,16.12316535]
[1741695603517,0.06008996,124.22,124.19,0.05211533]
[1741695603717,11.08514184,124.29,124.19,18.31268068]
[1741695604019,11.08514184,124.29,124.19,2.1374]
[1741695604622,8.0486,124.26,124.21,8.0514]
[1741695604818,0.06042852,124.25,124.23,0.06052297]
[1741695606420,8.0463,124.29,124.24,34.22]
[1741695607112,8.0463,124.29,124.25,8.0484]
[1741695607323,8.046,124.3,124.24,34.22]
[1741695607719,0.05359248,124.28,124.26,8.10565798]
[1741695608322,0.05359248,124.28,124.27,8.0476]
[1741695609819,16.12316535,124.34,124.3,8.0451]
[1741695610122,16.12316535,124.34,124.26,2.02]
[1741695610317,8.0442,124.33,124.27,34.18]
[1741695610517,8.0442,124.33,124.28,8.0465]
[1741695610922,8.0444,124.32,124.28,8.0465]
[1741695611123,8.10522356,124.32,124.29,0.05914032]
[1741695611319,0.06082356,124.32,124.29,0.05914032]
[1741695611520,8.10522356,124.32,124.29,0.05914032]
[1741695611720,0.06082356,124.32,124.29,0.05914032]
[1741695612124,8.10522356,124.32,124.29,0.05914032]
[1741695612723,0.06082356,124.32,124.29,0.05914032]
[1741695614429,10.06566911,124.3,124.29,0.05914032]
[1741695614824,18.11126911,124.3,124.29,0.05914032]
[1741695617129,8.0456,124.3,124.29,0.05914032]
[1741695620236,8.0453,124.31,124.29,0.05914032]
[1741695620636,8.0454,124.31,124.29,0.05914032]
[1741695621433,8.0456,124.3,124.29,0.05914032]
[1741695622335,8.0453,124.31,124.29,0.05914032]
[1741695623334,10.12649267,124.32,124.29,0.05914032]
[1741695623735,8.0456,124.3,124.29,0.05914032]
[1741695625138,8.0454,124.31,124.29,0.05914032]
[1741695625937,8.0456,124.3,124.29,0.05914032]
[1741695627141,18.11126911,124.3,124.29,0.05914032]
[1741695627433,10.06566911,124.28,124.23,43.8193]
[1741695627638,10.06566911,124.3,124.23,2.1294]
[1741695627840,8.0472,124.28,124.23,35.7494]
[1741695628138,10.06566911,124.3,124.23,35.7494]
[1741695628330,0.05187673,124.27,124.24,0.06147548]
[1741695629338,8.09957673,124.27,124.24,0.06147548]
[1741695629842,8.09957673,124.27,124.24,8.11067548]
[1741695630142,8.0483,124.26,124.24,0.06147548]
[1741695630540,0.05187673,124.27,124.24,0.06147548]
[1741695630736,8.09977673,124.27,124.24,0.06147548]
[1741695630946,8.09977673,124.27,124.24,8.11087548]
[1741695631739,0.05187673,124.27,124.24,0.06147548]
[1741695632143,8.09977673,124.27,124.24,8.11067548]
[1741695632345,0.05187673,124.27,124.24,0.06147548]
[1741695632647,8.0453,124.31,124.25,10.06566911]
[1741695632838,10.06566911,124.34,124.26,33.8]
[1741695633238,10.06566911,124.34,124.26,41.8479]
[1741695633434,10.06566911,124.32,124.26,33.8]
[1741695633838,8.0467,124.29,124.28,0.05740104]
[1741695634040,0.05676898,124.3,124.28,0.05740104]
[1741695634943,8.10276898,124.3,124.28,0.05740104]
[1741695636139,8.0463,124.29,124.28,0.05740104]
[1741695636540,10.12243809,124.3,124.23,35.8694]
[1741695636839,10.06566911,124.3,124.23,35.8694]
[1741695637245,8.0466,124.29,124.26,8.0481]
[1741695637549,10.06566911,124.32,124.26,8.0481]
[1741695637747,10.06566911,124.32,124.26,0.06109429]
[1741695637748,0.06038917,124.29,124.26,0.06109429]
[1741695638044,8.10698917,124.29,124.26,0.06109429]
[1741695638248,0.06038917,124.29,124.26,0.06109429]
[1741695638450,8.047,124.28,124.26,0.06109429]
[1741695638749,0.06038917,124.29,124.26,0.06109429]
[1741695638940,8.10698917,124.29,124.26,0.06109429]
[1741695640245,8.10698917,124.29,124.26,8.10919429]
[1741695641249,8.047,124.28,124.26,0.06109429]
[1741695641450,10.12605828,124.29,124.26,0.06109429]
[1741695641842,8.0476,124.27,124.26,0.06109429]
[1741695642449,8.10708917,124.29,124.26,0.06109429]
[1741695642755,0.06038917,124.29,124.26,0.06109429]
[1741695643247,8.0471,124.28,124.26,0.06109429]
[1741695645048,0.06038917,124.29,124.26,0.06109429]
[1741695645647,8.0473,124.28,124.26,0.06109429]
[1741695646550,0.06038917,124.29,124.26,0.06109429]
[1741695646752,8.10708917,124.29,124.26,8.10929429]
[1741695646956,0.06038917,124.29,124.26,33.44109429]
[1741695647153,8.10718917,124.29,124.26,33.44109429]
[1741695647358,8.10718917,124.29,124.26,41.48919429]
[1741695647751,8.10718917,124.29,124.26,33.44109429]
[1741695647958,8.047,124.28,124.26,33.44109429]
[1741695648155,0.06038917,124.29,124.26,33.44109429]
[1741695648555,8.0475,124.28,124.26,33.44109429]
[1741695649665,8.10698917,124.29,124.26,33.44109429]
[1741695649870,0.06038917,124.29,124.26,33.44109429]
[1741695650566,8.10698917,124.29,124.26,33.44109429]
[1741695650870,0.06038917,124.29,124.26,33.44109429]
[1741695651670,0.06038917,124.29,124.27,8.0472]
[1741695652863,0.06038917,124.29,124.26,33.44109429]
[1741695653467,0.06038917,124.29,124.28,8.0469]
[1741695654172,23.02097362,124.37,124.28,14.55136911]
[1741695654376,23.02097362,124.37,124.3,10.06566911]
[1741695654677,8.042,124.36,124.33,8.0434]
[1741695654977,11.08514184,124.37,124.34,33.28]
[1741695655273,8.0421,124.36,124.34,0.05737968]
[1741695655468,11.14432034,124.37,124.34,33.41737968]
[1741695655667,11.14432034,124.37,124.34,43.48304879]
[1741695655867,11.14432034,124.37,124.35,8.042]
[1741695656075,122.15827893,124.38,124.34,43.48304879]
[1741695656275,122.15827893,124.38,124.36,8.0415]
[1741695656474,122.15827893,124.38,124.37,33.32]
[1741695656871,122.15827893,124.38,124.37,41.3611]
[1741695657068,8.0388,124.41,124.37,41.3611]
[1741695657273,0.05711455,124.39,124.37,41.3611]
[1741695657670,0.05711455,124.39,124.38,0.05984118]
[1741695658075,8.09691455,124.39,124.38,0.05984118]
[1741695659372,0.05711455,124.39,124.38,0.05984118]
[1741695661276,8.09691455,124.39,124.38,0.05984118]
[1741695661478,0.05711455,124.39,124.38,0.05984118]
[1741695662581,0.05711455,124.39,124.38,8.10034118]
[1741695662880,0.05711455,124.39,124.38,0.05984118]
[1741695664083,0.05711455,124.39,124.38,8.10034118]
[1741695664282,0.05711455,124.39,124.38,0.05984118]
[1741695665777,0.05711455,124.39,124.38,8.10034118]
[1741695665981,2.0056,124.46,124.38,12.54551029]
[1741695666181,10.06566911,124.51,124.42,10.06566911]
[1741695666481,8.0334,124.49,124.45,8.0354]
[1741695666681,8.0334,124.49,124.46,33.32]
[1741695666877,49.64349465,124.53,124.46,33.32]
[1741695666878,8.034,124.48,124.46,33.32]
[1741695667185,0.05299319,124.49,124.46,41.40754327]
[1741695667381,0.05299319,124.49,124.46,33.37234327]
[1741695668086,8.08679319,124.49,124.46,33.37234327]
[1741695668281,0.05299319,124.49,124.46,33.37234327]
[1741695670087,10.1186623,124.49,124.46,0.05234327]
[1741695670486,8.0347,124.47,124.46,0.05234327]
[1741695670785,0.05299319,124.49,124.46,0.05234327]
[1741695670987,8.0346,124.48,124.46,0.05234327]
[1741695671189,0.05299319,124.49,124.46,0.05234327]
[1741695671385,8.0347,124.47,124.46,0.05234327]
[1741695672382,8.0381,124.42,124.41,33.14]
[1741695672984,10.06566911,124.47,124.41,33.14]
[1741695673181,10.06566911,124.49,124.41,33.14]
[1741695673582,0.06167728,124.46,124.4,4.0452]
[1741695673884,0.06167728,124.46,124.44,0.05183454]
[1741695674389,8.0363,124.45,124.44,0.05183454]
[1741695676184,0.06167728,124.46,124.44,33.19183454]
[1741695676491,508.539,124.55,124.44,33.19183454]
[1741695676681,8.033,124.5,124.44,51.24186911]
[1741695676886,10.06566911,124.52,124.44,43.20566911]
[1741695677088,10.06566911,124.54,124.45,2.1452]
[1741695677280,8.0324,124.51,124.46,8.035]
[1741695677483,8.0324,124.51,124.47,33.14]
[1741695677692,0.05888807,124.5,124.47,33.19689282]
[1741695678188,10.06566911,124.54,124.47,33.19689282]
[1741695678384,8.0333,124.5,124.47,33.19689282]
[1741695678790,10.06566911,124.52,124.47,33.19689282]
[1741695678989,33.16,124.55,124.47,33.14]
[1741695679189,0.05572275,124.51,124.48,0.05736012]
[1741695681297,0.05572275,124.51,124.48,8.09096012]
[1741695681691,0.05572275,124.51,124.48,0.05736012]
[1741695681891,8.08802275,124.51,124.48,0.05736012]
[1741695682292,8.0334,124.49,124.48,0.05736012]
[1741695682495,0.05572275,124.51,124.48,0.05736012]
[1741695682898,0.05572275,124.51,124.48,8.09126012]
[1741695683286,0.05572275,124.51,124.48,0.05736012]
[1741695683492,10.12139186,124.51,124.48,0.05736012]
[1741695683791,0.05572275,124.51,124.48,0.05736012]
[1741695683985,8.0334,124.49,124.48,0.05736012]
[1741695684198,0.05572275,124.51,124.48,0.05736012]
[1741695684597,8.08812275,124.51,124.48,0.05736012]
[1741695684797,0.05572275,124.51,124.48,0.05736012]
[1741695685002,8.08812275,124.51,124.48,0.05736012]
[1741695685193,0.05572275,124.51,124.48,0.05736012]
[1741695686497,0.05572275,124.51,124.49,8.0334]
[1741695686695,0.05572275,124.51,124.5,33.2]
[1741695687801,8.08782275,124.51,124.5,33.2]
[1741695688194,0.05572275,124.51,124.48,0.05736012]
[1741695689301,8.0331,124.5,124.48,0.05736012]
[1741695689602,0.05572275,124.51,124.48,0.05736012]
[1741695690805,0.05572275,124.51,124.48,8.09106012]
[1741695691099,10.12139186,124.51,124.48,0.05736012]
[1741695691304,8.0332,124.5,124.48,0.05736012]
[1741695691501,0.05572275,124.51,124.48,0.05736012]
[1741695692805,0.05572275,124.51,124.49,33.12]
[1741695693006,8.08812275,124.51,124.49,33.12]
[1741695693306,0.05572275,124.51,124.49,33.12]
[1741695694106,8.0327,124.5,124.49,33.12]
[1741695694702,0.05572275,124.51,124.48,0.05736012]
[1741695695002,8.0334,124.49,124.48,0.05736012]
[1741695695707,0.05572275,124.51,124.48,0.05736012]
[1741695696508,0.05572275,124.51,124.49,33.2]
[1741695696911,8.08802275,124.51,124.49,33.2]
[1741695697610,0.05572275,124.51,124.49,33.2]
[1741695698313,8.08812275,124.51,124.49,33.2]
[1741695698905,0.05572275,124.51,124.49,33.2]
[1741695699111,8.0327,124.5,124.49,33.2]
[1741695699311,10.12139186,124.51,124.48,0.05736012]
[1741695699511,10.12139186,124.51,124.48,8.09096012]
[1741695699512,0.05572275,124.51,124.48,8.09096012]
[1741695700114,0.05572275,124.51,124.48,0.05736012]
[1741695700812,10.12139186,124.51,124.48,0.05736012]
[1741695701909,8.0334,124.49,124.48,0.05736012]
[1741695703410,0.05572275,124.51,124.48,0.05736012]
[1741695703811,0.05572275,124.51,124.48,8.09096012]
[1741695704012,0.05572275,124.51,124.48,0.05736012]
[1741695704418,0.05572275,124.51,124.48,8.09106012]
[1741695704621,8.08832275,124.51,124.48,0.05736012]
[1741695705118,0.05572275,124.51,124.48,0.05736012]
[1741695705721,8.0334,124.49,124.48,0.05736012]
[1741695706112,0.05572275,124.51,124.48,0.05736012]
[1741695708122,8.0334,124.49,124.48,0.05736012]
[1741695710324,8.0331,124.5,124.48,0.05736012]
[1741695710724,0.05572275,124.51,124.48,0.05736012]
[1741695711319,8.08832275,124.51,124.48,0.05736012]
[1741695711521,0.05572275,124.51,124.48,0.05736012]
[1741695712025,8.0331,124.5,124.48,0.05736012]
[1741695712218,0.05572275,124.51,124.48,0.05736012]
[1741695714629,8.0327,124.5,124.48,0.05736012]
[1741695714822,10.06566911,124.49,124.48,6.012e-05]
[1741695715027,43.18566911,124.49,124.38,130.82451519]
[1741695715229,8.037,124.44,124.4,39.3298]
[1741695715922,8.037,124.44,124.4,6.2098]
[1741695716130,0.05317549,124.43,124.41,0.0618334]
[1741695716624,8.09047549,124.43,124.41,0.0618334]
[1741695718728,0.05317549,124.43,124.41,0.0618334]
[1741695718933,8.0379,124.42,124.41,0.0618334]
[1741695720133,0.05317549,124.43,124.41,0.0618334]
[1741695720733,8.0379,124.42,124.41,0.0618334]
[1741695721926,18.10356911,124.42,124.41,0.0618334]
[1741695723831,0.05317549,124.43,124.41,0.0618334]
[1741695724337,0.05317549,124.43,124.41,8.1000334]
[1741695724534,0.05317549,124.43,124.41,0.0618334]
[1741695725828,8.0379,124.42,124.41,0.0618334]
[1741695727527,10.06566911,124.42,124.37,33.12]
[1741695727727,8.0401,124.39,124.37,33.12]
[1741695727927,8.0401,124.39,124.36,35.1128]
[1741695728637,8.0405,124.38,124.36,35.1128]
[1741695728941,0.05094783,124.39,124.36,33.19833407]
[1741695729435,8.09134783,124.39,124.36,33.19833407]
[1741695729841,0.05094783,124.39,124.36,0.05833407]
[1741695730841,8.0405,124.38,124.36,0.05833407]
[1741695731135,0.05094783,124.39,124.36,0.05833407]
[1741695731338,8.0411,124.37,124.36,0.05833407]
[1741695732234,33.14,124.37,124.3,33.14]
[1741695732440,33.14,124.37,124.29,33.14]
[1741695732441,10.06566911,124.34,124.29,33.14]
[1741695732835,8.0442,124.33,124.28,47.3289]
[1741695733036,10.06566911,124.34,124.25,275.28566911]
[1741695733238,0.05480279,124.31,124.28,0.06029445]
[1741695734243,0.05480279,124.31,124.29,33.14]
[1741695734836,0.05480279,124.31,124.28,0.06029445]
[1741695735438,8.10030279,124.31,124.28,0.06029445]
[1741695735638,0.05480279,124.31,124.28,0.06029445]
[1741695735842,10.06566911,124.3,124.28,0.06029445]
[1741695736245,8.0469,124.29,124.23,41.1898]
[1741695736546,10.06566911,124.28,124.23,33.14]
[1741695737141,18.11286911,124.28,124.23,41.1901]
[1741695737344,0.05819794,124.27,124.24,0.05935181]
[1741695737945,8.10579794,124.27,124.24,0.05935181]
[1741695739347,0.05819794,124.27,124.24,0.05935181]
[1741695741248,0.05819794,124.27,124.26,8.0482]
[1741695741443,0.05819794,124.27,124.24,0.05935181]
[1741695742149,0.05819794,124.27,124.25,8.0485]
[1741695742852,0.05819794,124.27,124.24,0.05935181]
[1741695743644,10.06566911,124.32,124.24,0.05935181]
[1741695743845,6.1985,124.37,124.32,8.044]
[1741695744045,6.1985,124.37,124.3,33.16]
[1741695744350,10.06566911,124.34,124.3,33.16]
[1741695744551,33.16,124.36,124.27,33.16]
[1741695744552,10.06566911,124.32,124.27,33.16]
[1741695744752,10.06566911,124.32,124.26,33.16]
[1741695744956,0.0529828,124.31,124.28,0.06187559]
[1741695746154,0.0529828,124.31,124.28,8.10837559]
[1741695746449,0.0529828,124.31,124.28,0.06187559]
[1741695746648,0.0529828,124.31,124.28,8.10847559]
[1741695747054,0.0529828,124.31,124.28,0.06187559]
[1741695748353,0.0529828,124.31,124.29,33.16]
[1741695748755,10.06566911,124.36,124.3,2.1443]
[1741695748954,10.06566911,124.36,124.3,4.1757]
[1741695749151,8.0428,124.35,124.3,4.1757]
[1741695749356,10.06566911,124.36,124.3,4.1757]
[1741695749557,10.06566911,124.34,124.29,33.16]
[1741695749858,8.09849106,124.33,124.3,0.05236787]
[1741695750458,0.05449106,124.33,124.3,0.05236787]
[1741695750657,8.0444,124.32,124.3,0.05236787]
[1741695752165,0.05449106,124.33,124.3,0.05236787]
[1741695752555,0.05449106,124.33,124.3,8.09786787]
[1741695753060,0.05449106,124.33,124.3,0.05236787]
[1741695753264,0.05449106,124.33,124.31,8.0446]
[1741695753464,0.05449106,124.33,124.3,0.05236787]
[1741695753660,0.05449106,124.33,124.31,8.0445]
[1741695753862,0.05449106,124.33,124.3,0.05236787]
[1741695754265,10.06566911,124.38,124.3,2.22446787]
[1741695754460,10.06566911,124.38,124.3,2.1721]
[1741695754866,8.0421,124.36,124.32,8.044]
[1741695755066,8.0421,124.36,124.32,41.204]
[1741695755360,8.09430831,124.35,124.33,0.05378044]
[1741695755765,0.05130831,124.35,124.33,0.05378044]
[1741695756066,8.0431,124.34,124.33,0.05378044]
[1741695756369,10.06566911,124.34,124.29,33.16]
[1741695756564,8.0441,124.33,124.29,41.2057]
[1741695757063,10.06566911,124.36,124.29,33.16]
[1741695757366,8.09987722,124.34,124.31,0.05276828]
[1741695757667,0.05647722,124.34,124.31,0.05276828]
[1741695757864,0.05647722,124.34,124.31,8.09776828]
[1741695758765,0.05647722,124.34,124.32,8.0443]
[1741695759266,0.05647722,124.34,124.32,8.0441]
[1741695760268,0.05647722,124.34,124.33,8.0437]
[1741695761168,0.05647722,124.34,124.32,35.2956]
[1741695763068,0.05647722,124.34,124.32,43.34]
[1741695763671,43.20566911,124.4,124.32,37.4799]
[1741695764164,10.06566911,124.42,124.33,10.06566911]
[1741695764561,8.0401,124.39,124.35,8.0421]
[1741695764766,8.09868841,124.39,124.36,0.05144778]